fUST/lending_fUST_20250802
["ID","MTS","AMOUNT","RATE_DAILY","PERIOD"]
[376661740,1754076646224,-460.0,0.00021379,2]
[376661741,1754076646234,-460.0,0.00021379,2]
[376661742,1754076646243,-460.0,0.00021379,2]
[376661743,1754076646253,-526.47311081,0.00021379,2]
[376661744,1754076646262,-460.0,0.00021379,2]
[376661745,1754076646273,-460.0,0.00021379,2]
[376661746,1754076646283,-460.0,0.0002138,2]
[376661747,1754076646293,-460.0,0.0002138,2]
[376661748,1754076646303,-460.0,0.0002138,2]
[376661750,1754076646312,-460.0,0.0002138,2]
[376661752,1754076646322,-167.34,0.0002138,2]
[376661754,1754076646331,-460.0,0.0002138,2]
[376661755,1754076646341,-460.0,0.0002138,2]
[376661757,1754076646351,-849.13,0.0002138,2]
[376661759,1754076646360,-460.0,0.0002138,2]
[376661760,1754076646370,-392.78,0.0002138,2]
[376661761,1754076646379,-460.0,0.0002138,2]
[376661763,1754076646387,-460.0,0.0002138,2]
[376661764,1754076646397,-460.0,0.0002138,2]
[376661765,1754076646406,-460.0,0.0002138,2]
[376661766,1754076646416,-200.0,0.00021534,2]
[376661767,1754076646425,-3982.43699345,0.00021555,5]
[376661768,1754076646434,-460.0,0.0002165,2]
[376661769,1754076646443,-604.34,0.0002165,2]
[376661770,1754076646452,-691.66,0.00021651,2]
[376661771,1754076646461,-460.0,0.00021651,2]
[376661772,1754076646471,-460.0,0.00021651,2]
[376661773,1754076646480,-294.22699164,0.00021651,2]
[376661774,1754076646490,-716.57,0.00021651,2]
[376661775,1754076646499,-609.54,0.00021651,2]
[376661776,1754076646508,-460.0,0.00021651,2]
[376661777,1754076646521,-460.0,0.00021651,2]
[376661778,1754076646530,-1239.09,0.00021651,2]
[376661779,1754076646539,-2163.84,0.00021651,2]
[376661780,1754076646548,-619.89,0.00021651,2]
[376661781,1754076646558,-460.0,0.00021651,2]
[376661782,1754076646568,-460.0,0.00021652,2]
[376661783,1754076646577,-460.0,0.00021652,2]
[376661784,1754076646586,-460.0,0.00021652,2]
[376661785,1754076646597,-460.0,0.00021652,2]
[376661786,1754076646608,-460.0,0.00021652,2]
[376661787,1754076646618,-460.0,0.00021653,2]
[376661788,1754076646630,-460.0,0.00021653,2]
[376661789,1754076646639,-460.0,0.00021653,2]
[376661790,1754076646649,-460.0,0.00021653,2]
[376661791,1754076646658,-460.0,0.00021654,2]
[376661792,1754076646668,-460.0,0.00021654,2]
[376661793,1754076646678,-460.0,0.00021654,2]
[376661794,1754076646687,-460.0,0.00021654,2]
[376661795,1754076646697,-280.37,0.00021654,2]
[376661796,1754076646706,-460.0,0.00021654,2]
[376661797,1754076646715,-849.13,0.00021654,2]
[376661798,1754076646725,-460.0,0.00021654,2]
[376661799,1754076646734,-460.0,0.00021654,2]
[376661800,1754076646744,-460.0,0.00021654,2]
[376661801,1754076646755,-227.33,0.00021654,2]
[376661802,1754076646764,-292.53,0.00021654,2]
[376661803,1754076646776,-1000.0,0.00021721,2]
[376661804,1754076646786,-1000.0,0.00021721,2]
[376661805,1754076646796,-200.0,0.00021792,15]
[376661806,1754076646806,-200.0,0.00021792,15]
[376661807,1754076646818,-200.0,0.00021792,15]
[376661808,1754076646829,-200.0,0.00021792,15]
[376661809,1754076646839,-320.0,0.00021792,15]
[376661810,1754076646849,-3982.43699345,0.00021831,6]
[376661811,1754076646859,-460.0,0.00021924,2]
[376661812,1754076646869,-604.34,0.00021924,2]
[376661813,1754076646879,-691.66,0.00021925,2]
[376661814,1754076646889,-460.0,0.00021925,2]
[376661815,1754076646898,-460.0,0.00021925,2]
[376661816,1754076646908,-716.57,0.00021925,2]
[376661817,1754076646917,-609.54,0.00021925,2]
[376661818,1754076646927,-460.0,0.00021925,2]
[376661819,1754076646937,-460.0,0.00021925,2]
[376661820,1754076646947,-1239.09,0.00021925,2]
[376661821,1754076646957,-2163.84,0.00021925,2]
[376661822,1754076646967,-619.89,0.00021925,2]
[376661823,1754076646976,-460.0,0.00021925,2]
[376661824,1754076646986,-460.0,0.00021926,2]
[376661825,1754076646996,-204.2,0.00021926,2]
[376661826,1754076647006,-460.0,0.00021926,2]
[376661827,1754076647015,-460.0,0.00021926,2]
[376661828,1754076647026,-460.0,0.00021926,2]
[376661829,1754076647036,-460.0,0.00021927,2]
[376661830,1754076647045,-460.0,0.00021927,2]
[376661831,1754076647055,-460.0,0.00021927,2]
[376661832,1754076647066,-460.0,0.00021928,2]
[376661833,1754076647078,-460.0,0.00021928,2]
[376661834,1754076647087,-460.0,0.00021928,2]
[376661835,1754076647096,-460.0,0.00021928,2]
[376661836,1754076647105,-849.13,0.00021928,2]
[376661837,1754076647115,-460.0,0.00021928,2]
[376661838,1754076647124,-460.0,0.00021928,2]
[376661839,1754076647133,-365.71,0.00021928,2]
[376661840,1754076647143,-44540.89770062,0.0002198,2]
[376661841,1754076647152,-651.32,0.00022,7]
[376661842,1754076647161,-1429.28,0.00022,7]
[376661843,1754076647170,-3973.48,0.00022,7]
[376661844,1754076647178,-310.91,0.00022,2]
[376661845,1754076647187,-3982.43699345,0.00022107,6]
[376661846,1754076647196,-460.0,0.00022198,2]
[376661847,1754076647206,-604.34,0.00022198,2]
[376661848,1754076647215,-691.66,0.00022199,2]
[376661849,1754076647224,-460.0,0.00022199,2]
[376661850,1754076647233,-460.0,0.00022199,2]
[376661851,1754076647246,-716.57,0.00022199,2]
[376661852,1754076647256,-609.54,0.00022199,2]
[376661853,1754076647265,-460.0,0.00022199,2]
[376661854,1754076647274,-460.0,0.00022199,2]
[376661855,1754076647284,-1239.09,0.00022199,2]
[376661856,1754076647293,-2163.84,0.00022199,2]
[376661857,1754076647302,-619.89,0.00022199,2]
[376661858,1754076647311,-460.0,0.00022199,2]
[376661859,1754076647319,-266.85,0.000222,2]
[376661860,1754076647329,-460.0,0.000222,2]
[376661861,1754076647338,-460.0,0.000222,2]
[376661862,1754076647348,-460.0,0.000222,2]
[376661863,1754076647357,-460.0,0.00022201,2]
[376661864,1754076647367,-460.0,0.00022201,2]
[376661865,1754076647376,-460.0,0.00022201,2]
[376661866,1754076647385,-460.0,0.00022202,2]
[376661867,1754076647395,-460.0,0.00022202,2]
[376661868,1754076647404,-460.0,0.00022202,2]
[376661869,1754076647414,-460.0,0.00022202,2]
[376661870,1754076647423,-849.13,0.00022202,2]
[376661871,1754076647433,-222.22,0.00022202,2]
[376661872,1754076647442,-521.65,0.00022202,2]
[376661873,1754076647451,-170.568,0.00022259,2]
[376661874,1754076647460,-1000.0,0.00022268,2]
[376661875,1754076647469,-500.0,0.00022318,2]
[376661876,1754076647484,-166.96739693,0.00022357,2]
[376661877,1754076647496,-3982.43699345,0.00022383,7]
[376661878,1754076647510,-460.0,0.00022472,2]
[376661879,1754076647527,-604.34,0.00022472,2]
[376661880,1754076647540,-691.66,0.00022473,2]
[376661881,1754076647552,-460.0,0.00022473,2]
[376661882,1754076647562,-463.68,0.00022473,2]
[376661883,1754076647576,-716.57,0.00022473,2]
[376661884,1754076647587,-609.54,0.00022473,2]
[376661885,1754076647599,-460.0,0.00022473,2]
[376661886,1754076647612,-460.0,0.00022473,2]
[376661887,1754076647624,-1239.09,0.00022473,2]
[376661888,1754076647636,-2163.84,0.00022473,2]
[376661889,1754076647648,-619.89,0.00022473,2]
[376661890,1754076647660,-460.0,0.00022473,2]
[376661891,1754076647672,-460.0,0.00022474,2]
[376661892,1754076647684,-460.0,0.00022474,2]
[376661893,1754076647697,-460.0,0.00022474,2]
[376661894,1754076647709,-460.0,0.00022475,2]
[376661895,1754076647719,-153.12,0.00022475,2]
[376661896,1754076647731,-460.0,0.00022475,2]
[376661897,1754076647743,-505.27474466,0.00022475,2]
[376661898,1754076647754,-460.0,0.00022476,2]
[376661899,1754076647765,-460.0,0.00022476,2]
[376661900,1754076647779,-460.0,0.00022476,2]
[376661901,1754076647791,-460.0,0.00022476,2]
[376661902,1754076647804,-849.13,0.00022476,2]
[376661903,1754076647814,-3982.43699345,0.00022659,7]
[376661904,1754076647826,-460.0,0.00022746,2]
[376661905,1754076647835,-604.34,0.00022746,2]
[376661906,1754076647846,-691.66,0.00022747,2]
[376661907,1754076647856,-460.0,0.00022747,2]
[376661908,1754076647868,-716.57,0.00022747,2]
[376661909,1754076647878,-609.54,0.00022747,2]
[376661910,1754076647890,-460.0,0.00022747,2]
[376661911,1754076647902,-460.0,0.00022747,2]
[376661912,1754076647914,-1239.09,0.00022747,2]
[376661913,1754076647925,-2163.84,0.00022747,2]
[376661914,1754076647937,-619.89,0.00022747,2]
[376661915,1754076647948,-460.0,0.00022747,2]
[376661916,1754076647959,-460.0,0.00022748,2]
[376661917,1754076647971,-460.0,0.00022748,2]
[376661918,1754076647983,-460.0,0.00022748,2]
[376661919,1754076647995,-589.48,0.00022749,2]
[376661920,1754076648008,-460.0,0.00022749,2]
[376661921,1754076648018,-544.76,0.0002275,2]
[376661922,1754076648031,-460.0,0.0002275,2]
[376661923,1754076648041,-460.0,0.0002275,2]
[376661924,1754076648051,-460.0,0.0002275,2]
[376661925,1754076648062,-849.13,0.0002275,2]
[376661926,1754076648074,-231.52694941,0.00022821,2]
[376661927,1754076648086,-160.0,0.00022821,2]
[376661928,1754076648099,-216.22890603,0.00022821,2]
[376661929,1754076648111,-12644.26590849,0.00022821,2]
[376661930,1754076648123,-215.03686253,0.00022821,2]
[376661931,1754076648133,-160.0,0.00022821,2]
[376661932,1754076648144,-160.0,0.00022821,2]
[376661933,1754076648154,-160.0,0.00022821,2]
[376661934,1754076648166,-160.0,0.00022821,2]
[376661935,1754076648177,-3982.43699345,0.00022934,8]
[376661936,1754076648190,-160.0,0.00023,2]
[376661937,1754076648201,-310.91,0.00023,2]
[376661938,1754076648212,-460.0,0.0002302,2]
[376661939,1754076648223,-604.34,0.0002302,2]
[376661940,1754076648234,-691.66,0.00023021,2]
[376661941,1754076648244,-460.0,0.00023021,2]
[376661942,1754076648255,-716.57,0.00023021,2]
[376661943,1754076648266,-609.54,0.00023021,2]
[376661944,1754076648277,-460.0,0.00023021,2]
[376661945,1754076648288,-460.0,0.00023021,2]
[376661946,1754076648299,-1239.09,0.00023021,2]
[376661947,1754076648310,-2163.84,0.00023021,2]
[376661948,1754076648321,-619.89,0.00023021,2]
[376661949,1754076648331,-460.0,0.00023021,2]
[376661950,1754076648342,-460.0,0.00023022,2]
[376661951,1754076648353,-460.0,0.00023022,2]
[376661952,1754076648364,-460.0,0.00023022,2]
[376661953,1754076648375,-460.0,0.00023023,2]
[376661954,1754076648387,-460.0,0.00023024,2]
[376661955,1754076648398,-460.0,0.00023024,2]
[376661956,1754076648408,-460.0,0.00023024,2]
[376661957,1754076648419,-849.13,0.00023024,2]
[376661958,1754076648433,-587.0,0.00023096,2]
[376661959,1754076648444,-3982.43699345,0.0002321,8]
[376661960,1754076648455,-460.0,0.00023294,2]
[376661961,1754076648466,-604.34,0.00023294,2]
[376661962,1754076648477,-691.66,0.00023295,2]
[376661963,1754076648489,-460.0,0.00023295,2]
[376661964,1754076648500,-716.57,0.00023295,2]
[376661965,1754076648511,-609.54,0.00023295,2]
[376661966,1754076648527,-460.0,0.00023295,2]
[376661967,1754076648538,-460.0,0.00023295,2]
[376661968,1754076648550,-1239.09,0.00023295,2]
[376661969,1754076648562,-2163.84,0.00023295,2]
[376661970,1754076648573,-619.89,0.00023295,2]
[376661971,1754076648584,-460.0,0.00023295,2]
[376661972,1754076648596,-460.0,0.00023296,2]
[376661973,1754076648608,-460.0,0.00023296,2]
[376661974,1754076648619,-460.0,0.00023296,2]
[376661975,1754076648630,-460.0,0.00023297,2]
[376661976,1754076648641,-460.0,0.00023298,2]
[376661977,1754076648652,-460.0,0.00023298,2]
[376661978,1754076648663,-460.0,0.00023298,2]
[376661979,1754076648675,-849.13,0.00023298,2]
[376661980,1754076648686,-502.54733132,0.00023414,2]
[376661981,1754076648696,-3982.43699345,0.00023486,9]
[376661982,1754076648707,-460.0,0.00023568,2]
[376661983,1754076648718,-604.34,0.00023568,2]
[376661984,1754076648729,-691.66,0.00023569,2]
[376661985,1754076648740,-460.0,0.00023569,2]
[376661986,1754076648759,-716.57,0.00023569,2]
[376661987,1754076648774,-609.54,0.00023569,2]
[376661988,1754076648784,-460.0,0.00023569,2]
[376661989,1754076648796,-460.0,0.00023569,2]
[376661990,1754076648808,-1239.09,0.00023569,2]
[376661991,1754076648819,-2163.84,0.00023569,2]
[376661992,1754076648830,-619.89,0.00023569,2]
[376661993,1754076648841,-460.0,0.00023569,2]
[376661994,1754076648853,-460.0,0.0002357,2]
[376661995,1754076648864,-460.0,0.0002357,2]
[376661996,1754076648876,-460.0,0.0002357,2]
[376661997,1754076648887,-460.0,0.00023571,2]
[376661998,1754076648899,-460.0,0.00023572,2]
[376661999,1754076648909,-460.0,0.00023572,2]
[376662000,1754076648920,-175.02,0.00023572,2]
[376662001,1754076648931,-849.13,0.00023572,2]
[376662002,1754076648942,-3982.43699345,0.00023762,9]
[376662003,1754076648952,-1151.79701127,0.0002378,2]
[376662004,1754076648964,-460.0,0.00023842,2]
[376662005,1754076648974,-604.34,0.00023842,2]
[376662006,1754076648985,-691.66,0.00023843,2]
[376662007,1754076648996,-460.0,0.00023843,2]
[376662008,1754076649008,-716.57,0.00023843,2]
[376662009,1754076649170,-609.54,0.00023843,2]
[376662010,1754076649186,-460.0,0.00023843,2]
[376662011,1754076649196,-460.0,0.00023843,2]
[376662012,1754076649206,-1239.09,0.00023843,2]
[376662013,1754076649215,-2163.84,0.00023843,2]
[376662014,1754076649225,-619.89,0.00023843,2]
[376662015,1754076649234,-460.0,0.00023843,2]
[376662016,1754076649244,-460.0,0.00023844,2]
[376662017,1754076649254,-460.0,0.00023844,2]
[376662018,1754076649263,-460.0,0.00023844,2]
[376662019,1754076649276,-460.0,0.00023845,2]
[376662020,1754076649286,-460.0,0.00023846,2]
[376662021,1754076649295,-430.68,0.00023846,2]
[376662022,1754076649304,-849.13,0.00023846,2]
[376662023,1754076649314,-310.91,0.00023858,2]
[376662024,1754076649323,-150.0,0.000239,2]
[376662025,1754076649333,-651.32,0.000239,7]
[376662026,1754076649342,-200.0,0.00023927,15]
[376662027,1754076649352,-200.0,0.00023927,15]
[376662028,1754076649361,-200.0,0.00023927,15]
[376662029,1754076649370,-200.0,0.00023927,15]
[376662030,1754076649380,-200.0,0.00023927,15]
[376662031,1754076649390,-200.0,0.00023927,15]
[376662032,1754076649399,-366.0,0.00023927,15]
[376662033,1754076649409,-5953.59528827,0.00024,7]
[376662034,1754076649418,-17952.37,0.00024,2]
[376662035,1754076649427,-3973.48,0.00024,7]
[376662036,1754076649436,-1429.28,0.000241,7]
[376662037,1754076649446,-460.0,0.00024116,2]
[376662038,1754076649455,-604.34,0.00024116,2]
[376662039,1754076649464,-691.66,0.00024117,2]
[376662040,1754076649473,-460.0,0.00024117,2]
[376662041,1754076649483,-716.57,0.00024117,2]
[376662042,1754076649492,-609.54,0.00024117,2]
[376662043,1754076649502,-460.0,0.00024117,2]
[376662044,1754076649512,-460.0,0.00024117,2]
[376662045,1754076649522,-1239.09,0.00024117,2]
[376662046,1754076649535,-2163.84,0.00024117,2]
[376662047,1754076649544,-619.89,0.00024117,2]
[376662048,1754076649554,-460.0,0.00024117,2]
[376662049,1754076649566,-460.0,0.00024118,2]
[376662050,1754076649575,-460.0,0.00024118,2]
[376662051,1754076649586,-460.0,0.00024118,2]
[376662052,1754076649596,-168.24,0.00024119,2]
[376662053,1754076649607,-460.0,0.0002412,2]
[376662054,1754076649616,-849.13,0.0002412,2]
[376662055,1754076649626,-2055.56401567,0.00024162,2]
[376662056,1754076649635,-179.82017982,0.00024275,2]
[376662057,1754076649644,-307.0,0.000243,2]
[376662058,1754076649654,-3982.43699345,0.00024314,10]
[376662059,1754076649664,-552.4,0.00024383,10]
[376662060,1754076649673,-552.4,0.00024383,10]
[376662061,1754076649683,-552.4,0.00024383,10]
[376662062,1754076649692,-552.4,0.00024383,10]
[376662063,1754076649701,-552.4,0.00024383,10]
[376662064,1754076649710,-552.4,0.00024383,10]
[376662065,1754076649719,-552.4,0.00024383,10]
[376662066,1754076649728,-552.4,0.00024383,10]
[376662067,1754076649737,-552.4,0.00024383,10]
[376662068,1754076649747,-552.4,0.00024383,10]
[376662069,1754076649756,-552.4,0.00024383,10]
[376662070,1754076649765,-552.4,0.00024383,10]
[376662071,1754076649777,-552.4,0.00024383,10]
[376662072,1754076649786,-552.4,0.00024383,10]
[376662073,1754076649796,-552.4,0.00024383,10]
[376662074,1754076649805,-552.4,0.00024383,10]
[376662075,1754076649815,-552.4,0.00024383,10]
[376662076,1754076649824,-552.4,0.00024383,10]
[376662077,1754076649839,-552.4,0.00024383,10]
[376662078,1754076649852,-552.4,0.00024383,10]
[376662079,1754076649861,-552.4,0.00024383,10]
[376662080,1754076649871,-552.4,0.00024383,10]
[376662081,1754076649880,-552.4,0.00024383,10]
[376662082,1754076649889,-552.61753619,0.00024383,10]
[376662083,1754076649898,-526.925583,0.0002439,10]
[376662084,1754076649908,-460.0,0.0002439,2]
[376662085,1754076649917,-604.34,0.0002439,2]
[376662086,1754076649926,-691.66,0.00024391,2]
[376662087,1754076649936,-460.0,0.00024391,2]
[376662088,1754076649945,-716.57,0.00024391,2]
[376662089,1754076649954,-609.54,0.00024391,2]
[376662090,1754076649963,-427.1,0.00024391,2]
[376662091,1754076649972,-460.0,0.00024391,2]
[376662092,1754076649981,-1239.09,0.00024391,2]
[376662093,1754076649990,-2163.84,0.00024391,2]
[376662094,1754076649999,-619.89,0.00024391,2]
[376662095,1754076650009,-460.0,0.00024391,2]
[376662096,1754076650018,-460.0,0.00024392,2]
[376662097,1754076650031,-460.0,0.00024392,2]
[376662098,1754076650041,-460.0,0.00024392,2]
[376662099,1754076650050,-460.0,0.00024394,2]
[376662100,1754076650060,-849.13,0.00024394,2]
[376662101,1754076650069,-161.95,0.00024406,7]
[376662102,1754076650079,-13816.95,0.000245,2]
[376662103,1754076650088,-161.95,0.00024506,7]
[376662104,1754076650097,-3982.43699345,0.0002459,11]
[376662105,1754076650107,-161.95,0.00024606,7]
[376662106,1754076650116,-407.0,0.00024637,2]
[376662107,1754076650125,-460.0,0.00024664,2]
[376662108,1754076650134,-604.34,0.00024664,2]
[376662109,1754076650143,-691.66,0.00024665,2]
[376662110,1754076650153,-460.0,0.00024665,2]
[376662111,1754076650162,-716.57,0.00024665,2]
[376662112,1754076650171,-609.54,0.00024665,2]
[376662113,1754076650180,-208.8793727,0.00024665,2]
[376662114,1754076650189,-1239.09,0.00024665,2]
[376662115,1754076650199,-2163.84,0.00024665,2]
[376662116,1754076650208,-619.89,0.00024665,2]
[376662117,1754076650217,-460.0,0.00024665,2]
[376662118,1754076650226,-460.0,0.00024666,2]
[376662119,1754076650235,-460.0,0.00024666,2]
[376662120,1754076650245,-522.75,0.00024666,2]
[376662121,1754076650254,-460.0,0.00024668,2]
[376662122,1754076650263,-849.13,0.00024668,2]
[376662123,1754076650274,-161.95,0.00024706,7]
[376662124,1754076650283,-310.91,0.00024788,2]
[376662125,1754076650292,-39484.45096336,0.000248,2]
[376662126,1754076650301,-161.95,0.00024806,7]
[376662127,1754076650311,-166.96739693,0.00024806,2]
[376662128,1754076650319,-501.86393037,0.00024821,2]
[376662129,1754076650328,-2030.296672,0.00024821,2]
[376662130,1754076650338,-151.0,0.00024821,2]
[376662131,1754076650347,-151.0,0.00024821,2]
[376662132,1754076650356,-151.0,0.00024821,2]
[376662133,1754076650365,-151.0,0.00024821,2]
[376662134,1754076650375,-151.0,0.00024821,2]
[376662135,1754076650384,-188.06,0.00024861,2]
[376662136,1754076650393,-203.66,0.00024861,2]
[376662137,1754076650403,-3982.43699345,0.00024866,12]
[376662138,1754076650412,-16478.29490284,0.0002489,15]
[376662139,1754076650421,-213919.06352311,0.000249,2]
[376662140,1754076650493,-6175.69272135,0.000249,2]
[376662141,1754076650717,-460.0,0.00019458,2]
[376662142,1754076650727,-500.0,0.00019459,2]
[376662143,1754076650737,-500.0,0.00019459,2]
[376662144,1754076650746,-182.86673587,0.00019459,2]
[376662145,1754076650755,-500.0,0.00019459,2]
[376662146,1754076650765,-621.74417741,0.00019459,2]
[376662147,1754076650775,-527.00084733,0.00019459,2]
[376662148,1754076650784,-500.0,0.00019459,2]
[376662149,1754076650794,-500.0,0.00019459,2]
[376662150,1754076650803,-500.0,0.00019459,2]
[376662151,1754076650813,-500.0,0.00019459,2]
[376662152,1754076650822,-500.0,0.00019459,2]
[376662153,1754076650831,-500.0,0.00019459,2]
[376662154,1754076650840,-500.0,0.00019459,2]
[376662155,1754076650849,-460.0,0.00019459,2]
[376662156,1754076650858,-460.0,0.00019459,2]
[376662157,1754076650867,-460.0,0.00019459,2]
[376662158,1754076650877,-460.0,0.00019733,2]
[376662159,1754076650887,-498.59,0.00019733,2]
[376662160,1754076650896,-460.0,0.00019733,2]
[376662161,1754076650905,-460.0,0.00021377,2]
[376662162,1754076650915,-460.0,0.00021651,2]
[376662163,1754076650924,-460.0,0.00021925,2]
[376662164,1754076650933,-460.0,0.00022199,2]
[376662165,1754076650943,-460.0,0.00022473,2]
[376662166,1754076650952,-460.0,0.00022747,2]
[376662167,1754076650962,-460.0,0.00023021,2]
[376662168,1754076650971,-460.0,0.00023295,2]
[376662169,1754076650981,-237.52,0.00023569,2]
[376662170,1754076650991,-170032.16992654,0.000249,2]
[376662171,1754076651000,-161.95,0.00024906,7]
[376662172,1754076651010,-264.73307654,0.00024938,2]
[376662173,1754076651019,-604.34,0.00024938,2]
[376662174,1754076651030,-460.0,0.00024939,2]
[376662175,1754076651039,-716.57,0.00024939,2]
[376662176,1754076651050,-609.54,0.00024939,2]
[376662177,1754076651060,-1239.09,0.00024939,2]
[376662178,1754076651070,-2163.84,0.00024939,2]
[376662179,1754076651080,-619.89,0.00024939,2]
[376662180,1754076651089,-460.0,0.00024939,2]
[376662181,1754076651098,-460.0,0.0002494,2]
[376662182,1754076651108,-460.0,0.0002494,2]
[376662183,1754076651117,-332.49,0.00024942,2]
[376662184,1754076651127,-849.13,0.00024942,2]
[376662185,1754076651136,-7515.56009684,0.00025,14]
[376662186,1754076651145,-161.95,0.00025006,7]
[376662187,1754076651155,-161.95,0.00025106,7]
[376662188,1754076651164,-3982.43699345,0.00025141,12]
[376662189,1754076651175,-420.0,0.00025163,2]
[376662190,1754076651184,-161.95,0.00025206,7]
[376662191,1754076651195,-604.34,0.00025212,2]
[376662192,1754076651206,-460.0,0.00025213,2]
[376662193,1754076651215,-716.57,0.00025213,2]
[376662194,1754076651224,-609.54,0.00025213,2]
[376662195,1754076651233,-1239.09,0.00025213,2]
[376662196,1754076651242,-619.89,0.00025213,2]
[376662197,1754076651251,-2163.84,0.00025213,2]
[376662198,1754076651260,-460.56548469,0.00025213,2]
[376662199,1754076651269,-460.0,0.00025214,2]
[376662200,1754076651281,-418.84612952,0.00025214,2]
[376662201,1754076651290,-849.13,0.00025216,2]
[376662202,1754076651299,-151.0,0.00025294,6]
[376662203,1754076651309,-161.95,0.00025306,7]
[376662204,1754076651318,-17952.37,0.000254,2]
[376662205,1754076651327,-651.32,0.000254,7]
[376662206,1754076651337,-161.99,0.00025406,7]
[376662207,1754076651346,-3982.43699345,0.00025417,13]
[376662208,1754076651356,-604.34,0.00025486,2]
[376662209,1754076651366,-263.57,0.00025487,2]
[376662210,1754076651375,-716.57,0.00025487,2]
[376662211,1754076651384,-609.54,0.00025487,2]
[376662212,1754076651394,-1239.09,0.00025487,2]
[376662213,1754076651403,-619.89,0.00025487,2]
[376662214,1754076651412,-2163.84,0.00025487,2]
[376662215,1754076651422,-460.0,0.00025488,2]
[376662216,1754076651431,-849.13,0.0002549,2]
[376662217,1754076651441,-3973.48,0.000255,7]
[376662218,1754076651450,-158.460622,0.00025517,11]
[376662219,1754076651459,-153.0,0.00025523,2]
[376662220,1754076651469,-153.0,0.00025523,2]
[376662221,1754076651478,-153.0,0.00025523,2]
[376662222,1754076651488,-153.0,0.00025523,2]
[376662223,1754076651497,-153.0,0.00025523,2]
[376662224,1754076651506,-153.0,0.00025524,2]
[376662225,1754076651517,-153.0,0.00025524,2]
[376662226,1754076651528,-151.0,0.00025529,6]
[376662227,1754076651538,-3982.43699345,0.00025693,13]
[376662228,1754076651548,-1429.28,0.000257,7]
[376662229,1754076651557,-310.91,0.00025717,7]
[376662230,1754076651567,-604.576792,0.0002576,2]
[376662231,1754076651579,-716.7620888,0.00025761,2]
[376662232,1754076651588,-609.74,0.00025761,2]
[376662233,1754076651599,-1239.20426357,0.00025761,2]
[376662234,1754076651609,-619.93511015,0.00025761,2]
[376662235,1754076651619,-2163.89931525,0.00025761,2]
[376662236,1754076651629,-430.15391938,0.00025762,2]
[376662237,1754076651638,-849.13,0.00025764,2]
[376662238,1754076651647,-151.0,0.00025765,7]
[376662239,1754076651656,-3982.43699345,0.00025969,14]
[376662240,1754076651666,-151.0,0.00026,7]
[376662241,1754076651675,-25133.14880863,0.00026,30]
[376662242,1754076651684,-159.503501,0.00026027,2]
[376662243,1754076651694,-849.13,0.00026038,2]
[376662244,1754076651703,-151.0,0.000261,18]
[376662245,1754076651713,-151.0,0.00026236,7]